bitfinex/quotes_BTCUSD_20250215
["timestamp","ask_amount","ask_price","bid_price","bid_amount"]
[1739648114952,0.64494935,97640.0,97639.0,0.002845]
[1739648116293,0.64194935,97640.0,97639.0,0.002845]
[1739648116491,0.64394935,97640.0,97639.0,0.002845]
[1739648116724,0.64194935,97640.0,97639.0,0.002845]
[1739648116931,0.64394935,97640.0,97639.0,0.002845]
[1739648126028,0.63994935,97640.0,97639.0,0.002845]
[1739648126233,0.64194935,97640.0,97639.0,0.002845]
[1739648126429,0.64394935,97640.0,97639.0,0.002845]
[1739648126987,0.64594935,97640.0,97639.0,0.002845]
[1739648127593,0.64394935,97640.0,97639.0,0.002845]
[1739648127920,0.73807601,97640.0,97639.0,0.002845]
[1739648128547,0.73607601,97640.0,97639.0,0.002845]
[1739648128998,0.73707601,97640.0,97639.0,0.002845]
[1739648129204,0.73307601,97640.0,97639.0,0.002845]
[1739648129407,0.73507601,97640.0,97639.0,0.002845]
[1739648130173,0.73307601,97640.0,97639.0,0.002845]
[1739648130586,0.73507601,97640.0,97639.0,0.002845]
[1739648130742,0.73407601,97640.0,97639.0,0.002845]
[1739648131068,0.73507601,97640.0,97639.0,0.002845]
[1739648131971,0.64294935,97640.0,97639.0,0.002845]
[1739648132535,0.64194935,97640.0,97639.0,0.002845]
[1739648132733,0.63994935,97640.0,97639.0,0.002845]
[1739648133137,0.64094935,97640.0,97639.0,0.002845]
[1739648134396,0.73307601,97640.0,97639.0,0.002845]
[1739648135912,0.73207601,97640.0,97639.0,0.002845]
[1739648136112,0.73307601,97640.0,97639.0,0.002845]
[1739648137159,0.64094935,97640.0,97639.0,0.002845]
[1739648139944,0.63994935,97640.0,97639.0,0.002845]
[1739648140247,0.64094935,97640.0,97639.0,0.002845]
[1739648151589,0.64094935,97640.0,97639.0,0.002845]
[1739648196668,0.64094935,97640.0,97639.0,0.002545]
[1739648206527,0.64094935,97640.0,97639.0,0.002829]
[1739648211037,0.63994935,97640.0,97639.0,0.002829]
[1739648211327,0.64294935,97640.0,97639.0,0.002829]
[1739648211781,0.64494935,97640.0,97639.0,0.002829]
[1739648237544,0.64494935,97640.0,97639.0,1e-06]
[1739648238831,0.64194935,97640.0,97639.0,1e-06]
[1739648239039,0.00984639,97637.0,97636.0,8e-07]
[1739648239246,0.29925269,97637.0,97636.0,8.8e-07]
[1739648239454,0.2979722,97637.0,97636.0,8.8e-07]
[1739648239839,0.6195722,97637.0,97636.0,8.8e-07]
[1739648240222,0.6265722,97637.0,97636.0,8.8e-07]
[1739648240412,0.6335722,97637.0,97636.0,8.8e-07]
[1739648241810,0.6665722,97637.0,97636.0,8.8e-07]
[1739648243083,0.7433722,97637.0,97636.0,8.8e-07]
[1739648248377,0.8933722,97637.0,97636.0,8.8e-07]
[1739648248980,0.9033722,97637.0,97636.0,8.8e-07]
[1739648250243,0.8963722,97637.0,97636.0,8.8e-07]
[1739648250444,0.9508722,97637.0,97636.0,8.8e-07]
[1739648250627,0.9438722,97637.0,97636.0,8.8e-07]
[1739648250782,0.9508722,97637.0,97636.0,8.8e-07]
[1739648251405,0.9438722,97637.0,97636.0,8.8e-07]
[1739648252409,0.9368722,97637.0,97636.0,8.8e-07]
[1739648252607,0.9508722,97637.0,97636.0,8.8e-07]
[1739648252818,0.97004166,97637.0,97636.0,8.8e-07]
[1739648254019,0.9508722,97637.0,97636.0,8.8e-07]
[1739648255731,0.8740722,97637.0,97636.0,8.8e-07]
[1739648263991,0.8268562,97637.0,97636.0,8.8e-07]
[1739648264746,0.80700981,97637.0,97636.0,8.8e-07]
[1739648264950,0.8268562,97637.0,97636.0,8.8e-07]
[1739648265712,0.8168562,97637.0,97636.0,8.8e-07]
[1739648266119,0.8268562,97637.0,97636.0,8.8e-07]
[1739648266685,0.8168562,97637.0,97636.0,8.8e-07]
[1739648266879,0.8268562,97637.0,97636.0,8.8e-07]
[1739648268401,0.8168562,97637.0,97636.0,8.8e-07]
[1739648268601,0.8268562,97637.0,97636.0,8.8e-07]
[1739648270448,0.8168562,97637.0,97636.0,8.8e-07]
[1739648271259,0.8268562,97637.0,97636.0,8.8e-07]
[1739648274901,0.8226322,97637.0,97636.0,8.8e-07]
[1739648276824,0.8126322,97637.0,97636.0,8.8e-07]
[1739648277243,0.7796322,97637.0,97636.0,8.8e-07]
[1739648277449,0.6296322,97637.0,97636.0,8.8e-07]
[1739648277650,0.6296322,97637.0,97636.0,0.08020088]
[1739648284663,0.61978581,97637.0,97636.0,0.08020088]
[1739648285071,0.6296322,97637.0,97636.0,0.08020088]
[1739648287977,0.59764004,97637.0,97636.0,0.08020088]
[1739648288391,0.62958957,97637.0,97636.0,0.08020088]
[1739648289524,0.59764004,97637.0,97636.0,0.08020088]
[1739648290061,0.62958708,97637.0,97636.0,0.08020088]
[1739648290486,0.59764004,97637.0,97636.0,0.08020088]
[1739648290900,0.68966451,97637.0,97636.0,0.08020088]
[1739648293049,0.68266451,97637.0,97636.0,0.08020088]
[1739648293494,0.68466451,97637.0,97636.0,0.08020088]
[1739648294009,0.59264004,97637.0,97636.0,0.08020088]
[1739648294172,0.58564004,97637.0,97636.0,0.08020088]
[1739648294381,0.58864004,97637.0,97636.0,0.08020088]
[1739648300036,0.58664004,97637.0,97636.0,0.08020088]
[1739648300416,0.58364004,97637.0,97636.0,0.08020088]
[1739648300551,0.58564004,97637.0,97636.0,0.08020088]
[1739648300763,0.58664004,97637.0,97636.0,0.08020088]
[1739648316277,0.58564004,97637.0,97636.0,0.08020088]
[1739648317029,0.58364004,97637.0,97636.0,0.08020088]
[1739648317171,0.58464004,97637.0,97636.0,0.08020088]
[1739648344818,0.58464004,97637.0,97636.0,8.8e-07]
[1739648349505,0.61664813,97637.0,97636.0,8.8e-07]
[1739648351948,0.63584596,97637.0,97636.0,8.8e-07]
[1739648353176,0.72787043,97637.0,97636.0,8.8e-07]
[1739648358787,0.63584596,97637.0,97636.0,8.8e-07]
[1739648361601,0.60383787,97637.0,97636.0,8.8e-07]
[1739648361910,0.63581751,97637.0,97636.0,8.8e-07]
[1739648362116,0.60383787,97637.0,97636.0,8.8e-07]
[1739648363080,0.63581731,97637.0,97636.0,8.8e-07]
[1739648363641,0.60383787,97637.0,97636.0,8.8e-07]
[1739648364183,0.63581696,97637.0,97636.0,8.8e-07]
[1739648364618,0.72692372,97637.0,97636.0,8.8e-07]
[1739648364838,0.72792372,97637.0,97636.0,8.8e-07]
[1739648365331,0.72892372,97637.0,97636.0,8.8e-07]
[1739648366633,0.69694463,97637.0,97636.0,8.8e-07]
[1739648368088,0.72892234,97637.0,97636.0,8.8e-07]
[1739648368524,0.69694463,97637.0,97636.0,8.8e-07]
[1739648369198,0.72892273,97637.0,97636.0,8.8e-07]
[1739648370623,0.75962488,97637.0,97636.0,8.8e-07]
[1739648371005,0.66751812,97637.0,97636.0,8.8e-07]
[1739648371193,0.66551812,97637.0,97636.0,8.8e-07]
[1739648371403,0.66751812,97637.0,97636.0,8.8e-07]
[1739648371924,0.63681597,97637.0,97636.0,8.8e-07]
[1739648372848,0.63781597,97637.0,97636.0,8.8e-07]
[1739648374201,0.63481597,97637.0,97636.0,8.8e-07]
[1739648374401,0.64181597,97637.0,97636.0,8.8e-07]
[1739648377795,0.72221597,97637.0,97636.0,8.8e-07]
[1739648378217,0.76841597,97637.0,97636.0,8.8e-07]
[1739648378849,0.76441597,97637.0,97636.0,8.8e-07]
[1739648379031,0.76141597,97637.0,97636.0,8.8e-07]
[1739648379232,0.76841597,97637.0,97636.0,8.8e-07]
[1739648379391,0.77541597,97637.0,97636.0,8.8e-07]
[1739648380169,0.76841597,97637.0,97636.0,8.8e-07]
[1739648380555,0.77541597,97637.0,97636.0,8.8e-07]
[1739648382795,0.95841597,97637.0,97636.0,8.8e-07]
[1739648383796,0.95141597,97637.0,97636.0,8.8e-07]
[1739648384242,0.94441597,97637.0,97636.0,8.8e-07]
[1739648384537,0.95141597,97637.0,97636.0,8.8e-07]
[1739648385276,0.95841597,97637.0,97636.0,8.8e-07]
[1739648385817,0.95141597,97637.0,97636.0,8.8e-07]
[1739648386026,0.95841597,97637.0,97636.0,8.8e-07]
[1739648396474,0.95841597,97637.0,97636.0,8.8e-07]
[1739648398893,0.96841597,97637.0,97636.0,8.8e-07]
[1739648404969,0.96141597,97637.0,97636.0,8.8e-07]
[1739648405596,0.96841597,97637.0,97636.0,8.8e-07]
[1739648410053,0.16350939,97616.0,97615.0,0.0009875]
[1739648410343,0.62087182,97616.0,97615.0,0.00113747]
[1739648410551,0.61959114,97616.0,97615.0,0.00014997]
[1739648410754,0.6527248,97616.0,97615.0,0.00014997]
[1739648411167,0.67892263,97616.0,97615.0,0.00014997]
[1739648411763,0.68592263,97616.0,97615.0,0.00014997]
[1739648411969,0.67892263,97616.0,97615.0,0.00014997]
[1739648412195,0.67192263,97616.0,97615.0,0.00014997]
[1739648412450,0.69592263,97616.0,97615.0,9.7e-07]
[1739648412653,0.84592263,97616.0,97615.0,9.7e-07]
[1739648413264,0.83892263,97616.0,97615.0,9.7e-07]
[1739648413466,0.85895228,97616.0,97615.0,9.7e-07]
[1739648413674,0.85195228,97616.0,97615.0,9.7e-07]
[1739648413847,0.17352039,97609.0,97608.0,2.96797204]
[1739648414064,0.33100214,97609.0,97608.0,2.96812187]
[1739648414306,0.38087079,97609.0,97608.0,2.96812187]
[1739648415050,0.70947079,97609.0,97608.0,2.96812187]
[1739648415254,0.68579997,97609.0,97608.0,2.96812187]
[1739648415854,0.67879997,97609.0,97608.0,2.96812187]
[1739648416053,0.68579997,97609.0,97608.0,2.96812187]
[1739648416684,0.69279997,97609.0,97608.0,2.96812187]
[1739648421239,0.68279997,97609.0,97608.0,2.96812187]
[1739648421439,0.65979997,97609.0,97608.0,3.04662187]
[1739648423502,0.65979997,97609.0,97608.0,3.04676387]
[1739648424056,0.69043557,97609.0,97608.0,3.04676387]
[1739648426204,0.70001053,97609.0,97608.0,3.04676387]
[1739648427851,0.69043557,97609.0,97608.0,3.04676387]
[1739648429452,0.69043557,97609.0,97608.0,2.96826387]
[1739648430779,0.70001423,97609.0,97608.0,2.96826387]
[1739648432482,0.70001423,97609.0,97608.0,2.94418614]
[1739648432764,0.70001423,97609.0,97608.0,2.91489967]
[1739648434771,0.70029823,97609.0,97608.0,2.91489967]
[1739648437523,0.69071957,97609.0,97608.0,2.91489967]
[1739648438115,0.66008397,97609.0,97608.0,2.91489967]
[1739648451490,0.8408061,97609.0,97608.0,2.91489967]
[1739648452182,0.85040808,97609.0,97608.0,2.88286994]
[1739648452718,0.81968595,97609.0,97608.0,2.88286994]
[1739648453974,0.79608397,97609.0,97608.0,2.88286994]
[1739648454368,0.80308397,97609.0,97608.0,2.88286994]
[1739648454487,0.79608397,97609.0,97608.0,2.88286994]
[1739648454686,0.81908397,97609.0,97608.0,2.88286994]
[1739648454889,0.84308397,97609.0,97608.0,2.79349328]
[1739648455115,0.84308397,97609.0,97608.0,2.74619332]
[1739648455321,0.87380266,97609.0,97608.0,2.74619332]
[1739648456047,0.85980266,97609.0,97608.0,2.74619332]
[1739648456226,0.85280266,97609.0,97608.0,2.74619332]
[1739648456430,0.86680266,97609.0,97608.0,2.74619332]
[1739648457115,0.87639897,97609.0,97608.0,2.74619332]
[1739648457317,0.88339897,97609.0,97608.0,2.74619332]
[1739648460996,0.87639897,97609.0,97608.0,2.74619332]
[1739648461201,0.88339897,97609.0,97608.0,2.74619332]
[1739648461727,0.87380266,97609.0,97608.0,2.74619332]
[1739648462151,0.88339728,97609.0,97608.0,2.74619332]
[1739648462500,0.87639728,97609.0,97608.0,2.74619332]
[1739648462847,0.88339728,97609.0,97608.0,2.74619332]
[1739648465518,0.88339728,97609.0,97608.0,2.70006729]
[1739648465956,0.86939728,97609.0,97608.0,2.66803533]
[1739648466151,0.86239728,97609.0,97608.0,2.66803533]
[1739648466359,0.87639728,97609.0,97608.0,2.66803533]
[1739648466571,0.87639728,97609.0,97608.0,2.60656533]
[1739648466758,0.84567859,97609.0,97608.0,2.56558533]
[1739648466964,0.84567859,97609.0,97608.0,2.52460533]
[1739648467165,0.85267859,97609.0,97608.0,2.52460533]
[1739648467566,0.83167859,97609.0,97608.0,2.52460533]
[1739648468164,0.83867859,97609.0,97608.0,2.52460533]
[1739648468566,0.84567859,97609.0,97608.0,2.52460533]
[1739648469742,0.83608397,97609.0,97608.0,2.52460533]
[1739648469892,0.82908397,97609.0,97608.0,2.52460533]
[1739648470103,0.83608397,97609.0,97608.0,2.52460533]
[1739648470307,0.83608397,97609.0,97608.0,2.46313533]
[1739648474942,0.83608397,97609.0,97608.0,2.42215533]
[1739648479805,0.83608397,97609.0,97608.0,2.40166533]
[1739648479996,0.83608397,97609.0,97608.0,2.34019533]
[1739648480365,0.83608397,97609.0,97608.0,2.31970533]
[1739648482002,0.83608397,97609.0,97608.0,2.27872533]
[1739648482478,0.83608397,97609.0,97608.0,2.25823533]
[1739648485009,0.83608397,97609.0,97608.0,2.23774533]
[1739648485404,0.83608397,97609.0,97608.0,2.17627533]
[1739648485989,0.83608397,97609.0,97608.0,2.15578533]
[1739648486205,0.83608397,97609.0,97608.0,2.07382533]
[1739648488245,0.81688614,97609.0,97608.0,2.07382533]
[1739648496591,0.83609031,97609.0,97608.0,2.07382533]
[1739648508235,0.81688614,97609.0,97608.0,2.07382533]
[1739648519296,0.83609246,97609.0,97608.0,2.07382533]
[1739648523030,0.64324607,97609.0,97608.0,2.15212533]
[1739648523205,0.65309246,97609.0,97608.0,2.20122533]
[1739648523405,0.63388614,97609.0,97608.0,2.20122533]
[1739648525522,0.65308295,97609.0,97608.0,2.20122533]
[1739648528999,0.63388614,97609.0,97608.0,2.20122533]
[1739648533214,0.6530646,97609.0,97608.0,2.20122533]
[1739648535773,0.63388614,97609.0,97608.0,2.20122533]
[1739648555078,0.62688614,97609.0,97608.0,2.20122533]
[1739648555407,0.63388614,97609.0,97608.0,2.20122533]
[1739648555721,0.62688614,97609.0,97608.0,2.20122533]
[1739648555919,0.63388614,97609.0,97608.0,2.20122533]
[1739648556552,0.62688614,97609.0,97608.0,2.20122533]
[1739648556684,0.63388614,97609.0,97608.0,2.20122533]
[1739648561630,0.63388614,97609.0,97608.0,2.20117733]
[1739648575870,0.63388614,97609.0,97608.0,2.07377733]
[1739648593651,0.65309318,97609.0,97608.0,2.07377733]
[1739648594930,0.63388614,97609.0,97608.0,2.07377733]
[1739648597592,0.65309162,97609.0,97608.0,2.07377733]
[1739648604087,0.66559395,97609.0,97608.0,2.07377733]
[1739648630378,0.64638847,97609.0,97608.0,2.07377733]
[1739648637856,0.81938847,97609.0,97608.0,2.03279733]
[1739648638063,0.81938847,97609.0,97608.0,1.99181733]
[1739648638900,0.81238847,97609.0,97608.0,1.99181733]
[1739648639325,0.81938847,97609.0,97608.0,1.99181733]
[1739648639505,0.81238847,97609.0,97608.0,1.99181733]
[1739648639718,0.80538847,97609.0,97608.0,1.99181733]
[1739648639936,0.81938847,97609.0,97608.0,1.99181733]
[1739648640089,0.81238847,97609.0,97608.0,1.99181733]
[1739648640293,0.81938847,97609.0,97608.0,1.99181733]
[1739648646513,0.80688614,97609.0,97608.0,1.99181733]
[1739648649786,0.80688614,97609.0,97608.0,1.99181733]
[1739648668775,0.78388614,97609.0,97608.0,1.99181733]
[1739648668995,0.78388614,97609.0,97608.0,2.06681733]
[1739648671365,0.63388614,97609.0,97608.0,2.06681733]
[1739648698021,0.63388614,97609.0,97608.0,1.99181733]
[1739648726736,0.78388614,97609.0,97608.0,1.99181733]
[1739648728784,0.803072,97609.0,97608.0,1.99181733]
[1739648735787,0.653072,97609.0,97608.0,1.99181733]
[1739648736051,0.64322561,97609.0,97608.0,2.07041733]
[1739648736251,0.61124751,97609.0,97608.0,2.07041733]
[1739648736457,0.4674199,97609.0,97608.0,2.11711733]
[1739648736871,0.4604199,97609.0,97608.0,2.11711733]
[1739648737074,0.4534199,97609.0,97608.0,2.11711733]
[1739648737277,0.44123404,97609.0,97608.0,2.11711733]
[1739648737692,0.44823404,97609.0,97608.0,2.11711733]
[1739648737896,0.44123404,97609.0,97608.0,2.11711733]
[1739648738107,0.44823404,97609.0,97608.0,2.11711733]
[1739648738748,0.44123404,97609.0,97608.0,2.11711733]
[1739648739140,0.44823404,97609.0,97608.0,2.11711733]
[1739648739481,0.44123404,97609.0,97608.0,2.11711733]
[1739648739924,0.44823404,97609.0,97608.0,2.11711733]
[1739648740136,0.44123404,97609.0,97608.0,2.11711733]
[1739648740303,0.44823404,97609.0,97608.0,2.11811733]
[1739648741229,0.60190804,97609.0,97608.0,2.11811733]
[1739648741442,0.59490804,97609.0,97608.0,2.11811733]
[1739648741639,0.59490804,97609.0,97608.0,2.12011733]
[1739648744119,0.61406529,97609.0,97608.0,2.12011733]
[1739648744504,0.61406529,97609.0,97608.0,2.11811733]
[1739648744852,0.61406529,97609.0,97608.0,2.12011733]
[1739648745006,0.60706529,97609.0,97608.0,2.11911733]
[1739648745215,0.60706529,97609.0,97608.0,2.12011733]
[1739648745419,0.58790804,97609.0,97608.0,2.12011733]
[1739648745627,0.58790804,97609.0,97608.0,2.11911733]
[1739648745894,0.58790804,97609.0,97608.0,2.12011733]
[1739648746709,0.58790804,97609.0,97608.0,2.11811733]
[1739648746993,0.58790804,97609.0,97608.0,2.12011733]
[1739648747388,0.60706062,97609.0,97608.0,2.12011733]
[1739648750400,0.58790804,97609.0,97608.0,2.12011733]
[1739648756009,0.58790804,97609.0,97608.0,2.11811733]
[1739648756221,0.58790804,97609.0,97608.0,2.11911733]
[1739648757213,0.58790804,97609.0,97608.0,1.99381733]
[1739648759644,0.60706061,97609.0,97608.0,1.99381733]
[1739648761975,0.60706061,97609.0,97608.0,1.99181733]
[1739648762201,0.60706061,97609.0,97608.0,1.99381733]
[1739648762708,0.60706061,97609.0,97608.0,1.99181733]
[1739648762899,0.60806061,97609.0,97608.0,1.99181733]
[1739648780143,0.64005028,97609.0,97608.0,1.99181733]
[1739648791723,0.63905028,97609.0,97608.0,1.99181733]
[1739648791944,0.64005028,97609.0,97608.0,1.99181733]
[1739648792398,0.63905028,97609.0,97608.0,1.99181733]
[1739648792613,0.64105028,97609.0,97608.0,1.99181733]
[1739648792828,0.64205028,97609.0,97608.0,1.99181733]
[1739648797892,0.64105028,97609.0,97608.0,1.99181733]
[1739648798368,0.64805028,97609.0,97608.0,1.99181733]
[1739648798710,0.64105028,97609.0,97608.0,1.99181733]
[1739648799017,0.64805028,97609.0,97608.0,1.99181733]
[1739648799601,0.64605028,97609.0,97608.0,1.99181733]
[1739648799842,0.65305028,97609.0,97608.0,1.99181733]
[1739648800919,0.66005028,97609.0,97608.0,1.99181733]
[1739648812074,0.64089771,97609.0,97608.0,1.99181733]
[1739648812295,0.66007998,97609.0,97608.0,1.99181733]
[1739648820586,0.68307998,97609.0,97608.0,1.99181733]
[1739648837880,0.83307998,97609.0,97608.0,1.99181733]
[1739648839147,0.84267581,97609.0,97608.0,1.9597882]
[1739648839557,0.87338235,97609.0,97608.0,1.9597882]
[1739648840580,0.86378652,97609.0,97608.0,1.9597882]
[1739648840993,0.87378652,97609.0,97608.0,1.9597882]
[1739648842050,0.86678652,97609.0,97608.0,1.9597882]
[1739648842267,0.87378652,97609.0,97608.0,1.9597882]
[1739648842473,0.85978652,97609.0,97608.0,1.9597882]
[1739648842695,0.82907998,97609.0,97608.0,1.9597882]
[1739648843289,0.83607998,97609.0,97608.0,1.9597882]
[1739648844999,0.82907998,97609.0,97608.0,1.9597882]
[1739648845373,0.83607998,97609.0,97608.0,1.9597882]
[1739648845578,0.82907998,97609.0,97608.0,1.9597882]
[1739648846174,0.83607998,97609.0,97608.0,1.9597882]
[1739648852645,0.82607998,97609.0,97608.0,1.9597882]
[1739648853392,0.80689771,97609.0,97608.0,1.9597882]
[1739648855686,0.80689771,97609.0,97608.0,2.0367882]
[1739648856347,0.80689771,97609.0,97608.0,1.9597882]
[1739648867908,0.82607953,97609.0,97608.0,1.9597882]
[1739648880004,0.82607953,97609.0,97608.0,1.9597402]
[1739648885850,0.80689771,97609.0,97608.0,1.9597402]
[1739648888484,0.82609174,97609.0,97608.0,1.9597402]
[1739648903222,0.82609174,97609.0,97608.0,1.9597402]
[1739648905468,0.67609174,97609.0,97608.0,1.9597402]
[1739648908072,0.65309174,97609.0,97608.0,1.9597402]
[1739648908281,0.65309174,97609.0,97608.0,2.0372402]
[1739648908643,0.65309174,97609.0,97608.0,2.0840402]
[1739648910488,0.63389771,97609.0,97608.0,2.0840402]
[1739648912528,0.60190804,97609.0,97608.0,2.0840402]
[1739648916290,0.44823404,97609.0,97608.0,2.0840402]
[1739648916942,0.44823404,97609.0,97608.0,2.2377152]
[1739648917141,0.44123404,97609.0,97608.0,2.2377152]
[1739648917350,0.43423404,97609.0,97608.0,2.2377152]
[1739648917550,0.44123404,97609.0,97608.0,2.2377152]
[1739648917750,0.44823404,97609.0,97608.0,2.2377152]
[1739648917951,0.44123404,97609.0,97608.0,2.2377152]
[1739648918418,0.44323404,97609.0,97608.0,2.2377152]
[1739648918599,0.42638765,97609.0,97608.0,2.2377152]
[1739648918802,0.43623404,97609.0,97608.0,2.2377152]
[1739648919019,0.42838765,97609.0,97608.0,2.2377152]
[1739648919231,0.42638765,97609.0,97608.0,2.2377152]
[1739648919535,0.43623404,97609.0,97608.0,2.2377152]
[1739648919664,0.42638765,97609.0,97608.0,2.2377152]
[1739648920078,0.42438765,97609.0,97608.0,2.2377152]
[1739648920593,0.42738765,97609.0,97608.0,2.2377152]
[1739648920793,0.003284,97609.0,97608.0,2.2377152]
[1739648922350,0.001284,97609.0,97608.0,2.2377152]
[1739648924047,0.000284,97609.0,97608.0,2.2377152]
[1739648924464,0.000284,97609.0,97608.0,2.2387152]
[1739648924993,0.000284,97609.0,97608.0,2.2397152]
[1739648959055,0.000284,97609.0,97608.0,2.3897152]
[1739648967438,0.000284,97609.0,97608.0,2.3887152]
[1739648967773,0.000284,97609.0,97608.0,2.3877152]
[1739648968243,0.001284,97609.0,97608.0,2.3897152]
[1739648968789,0.002284,97609.0,97608.0,2.3937152]
[1739648980028,0.002284,97609.0,97608.0,5.3094552]
[1739648980159,0.002284,97609.0,97608.0,5.3324552]
[1739648982153,0.002284,97609.0,97608.0,5.43495885]
[1739648983243,0.002284,97609.0,97608.0,5.43511246]
[1739648984190,0.001284,97609.0,97608.0,5.43111246]
[1739648984675,0.001284,97609.0,97608.0,5.42911246]
[1739648984676,0.000284,97609.0,97608.0,5.42911246]
[1739648984908,0.001284,97609.0,97608.0,5.43511246]
[1739648985847,0.002284,97609.0,97608.0,5.44211246]
[1739648986273,0.001284,97609.0,97608.0,5.43511246]
[1739648986739,0.002284,97609.0,97608.0,5.44211246]
[1739648989935,0.002284,97609.0,97608.0,5.55001246]
[1739649002632,0.002284,97609.0,97608.0,2.64427246]
[1739649002790,0.002284,97609.0,97608.0,5.55001246]
[1739649006417,0.002284,97609.0,97608.0,3.60381885]
[1739649007196,0.002284,97609.0,97608.0,2.79411885]
[1739649007365,0.002284,97609.0,97608.0,2.75741885]
[1739649007601,0.002284,97609.0,97608.0,2.41191885]
[1739649008953,0.002284,97609.0,97608.0,2.40191885]
[1739649009153,0.002284,97609.0,97608.0,2.41191885]
[1739649009361,0.002284,97609.0,97608.0,2.40191885]
[1739649009518,0.002284,97609.0,97608.0,2.41191885]
[1739649009734,0.002284,97609.0,97608.0,2.2994152]
[1739649009954,0.002284,97609.0,97608.0,2.2764152]
[1739649013078,0.002284,97609.0,97608.0,2.2864152]
[1739649016656,0.002284,97609.0,97608.0,2.2734152]
[1739649016657,0.000284,97609.0,97608.0,2.2734152]
[1739649016835,0.000284,97609.0,97608.0,2.2854152]
[1739649016983,0.002284,97609.0,97608.0,2.2854152]
[1739649020378,0.002284,97609.0,97608.0,5.1911552]
[1739649020968,0.002284,97609.0,97608.0,5.31665885]
[1739649021801,0.002284,97609.0,97608.0,2.63471885]
[1739649022006,0.001284,97609.0,97608.0,2.62771885]
[1739649022736,0.002284,97609.0,97608.0,2.41091885]
[1739649023989,0.001284,97609.0,97608.0,2.2684152]
[1739649024217,0.000284,97609.0,97608.0,2.2734152]
[1739649024379,0.001284,97609.0,97608.0,2.2854152]
[1739649024590,0.002284,97609.0,97608.0,2.2854152]
[1739649024799,0.001284,97609.0,97608.0,2.2784152]
[1739649025015,0.002284,97609.0,97608.0,2.2854152]
[1739649025234,0.001284,97609.0,97608.0,2.2804152]
[1739649025668,0.002284,97609.0,97608.0,2.2854152]
[1739649025867,0.002284,97609.0,97608.0,2.2804152]
[1739649027657,0.003284,97609.0,97608.0,2.2854152]
[1739649040521,0.003284,97609.0,97608.0,2.2788152]
[1739649043658,0.003284,97609.0,97608.0,2.2688152]
[1739649049470,0.001284,97609.0,97608.0,2.2638152]
[1739649049957,0.002284,97609.0,97608.0,2.2688152]
[1739649050267,0.001284,97609.0,97608.0,2.2618152]
[1739649050450,0.002284,97609.0,97608.0,2.2688152]
[1739649075075,0.001284,97609.0,97608.0,2.2618152]
[1739649075279,0.001284,97609.0,97608.0,2.2638152]
[1739649075489,0.002284,97609.0,97608.0,2.2678152]
[1739649084355,0.02147002,97609.0,97608.0,2.1141402]
[1739649084593,0.02147002,97609.0,97608.0,2.2678152]
[1739649092944,0.02147002,97609.0,97608.0,2.1141402]
[1739649093463,0.02147002,97609.0,97608.0,1.9641402]
[1739649094092,0.17514402,97609.0,97608.0,1.9641402]
[1739649094886,0.18499041,97609.0,97608.0,1.9641402]
[1739649095286,0.18399041,97609.0,97608.0,1.9601402]
[1739649095707,0.18399041,97609.0,97608.0,1.9631402]
[1739649095906,0.18299041,97609.0,97608.0,1.9561402]
[1739649096288,0.18399041,97609.0,97608.0,1.9611402]
[1739649097216,0.28649406,97609.0,97608.0,1.9611402]
[1739649097385,0.28549406,97609.0,97608.0,1.9531402]
[1739649097830,0.28549406,97609.0,97608.0,1.9611402]
[1739649097831,0.28649406,97609.0,97608.0,1.9611402]
[1739649098021,0.28649406,97609.0,97608.0,1.9581402]
[1739649098344,0.73549406,97609.0,97608.0,1.9601402]
[1739649098910,0.73449406,97609.0,97608.0,1.9551402]
[1739649099113,0.73449406,97609.0,97608.0,1.9591402]
[1739649101843,0.73449406,97609.0,97608.0,1.9551402]
[1739649102112,0.73449406,97609.0,97608.0,1.9531402]
[1739649102333,0.73449406,97609.0,97608.0,1.9541402]
[1739649102652,0.73449406,97609.0,97608.0,1.9531402]
[1739649103059,0.74149406,97609.0,97608.0,1.9541402]
[1739649103461,0.73449406,97609.0,97608.0,1.9531402]
[1739649103886,0.73749406,97609.0,97608.0,1.9531402]
[1739649104649,0.74049406,97609.0,97608.0,1.9531402]
[1739649111970,0.75004958,97609.0,97608.0,1.9531402]
[1739649117450,0.78062867,97609.0,97608.0,1.9531402]
[1739649119952,0.75004958,97609.0,97608.0,1.9531402]
[1739649121366,0.74704958,97609.0,97608.0,1.9531402]
[1739649121752,0.75404958,97609.0,97608.0,1.9531402]
[1739649122163,0.75104958,97609.0,97608.0,1.9531402]
[1739649122361,0.75804958,97609.0,97608.0,1.9531402]
[1739649125084,0.75104958,97609.0,97608.0,1.9531402]
[1739649125492,0.78291856,97609.0,97608.0,1.9531402]
[1739649125687,0.78991856,97609.0,97608.0,1.9531402]
[1739649126005,0.82055574,97609.0,97608.0,1.9531402]
[1739649132878,0.82055574,97609.0,97608.0,1.92111128]
[1739649135109,0.82055574,97609.0,97608.0,1.87498839]
[1739649136326,0.74015574,97609.0,97608.0,1.87498839]
[1739649137003,0.70951856,97609.0,97608.0,1.87498839]
[1739649138878,0.69996304,97609.0,97608.0,1.87498839]
[1739649142150,0.70954744,97609.0,97608.0,1.87498839]
[1739649143894,0.66254744,97609.0,97608.0,1.87498839]
[1739649145461,0.65296304,97609.0,97608.0,1.87498839]
[1739649148488,0.65296304,97609.0,97608.0,1.87498839]
[1739649157217,0.63377702,97609.0,97608.0,1.87498839]
[1739649159657,0.65295408,97609.0,97608.0,1.87498839]
[1739649168108,0.64595408,97609.0,97608.0,1.87498839]
[1739649168307,0.63377702,97609.0,97608.0,1.87498839]
[1739649168537,0.62677702,97609.0,97608.0,1.87498839]
[1739649168739,0.63377702,97609.0,97608.0,1.87498839]
[1739649169314,0.62677702,97609.0,97608.0,1.87498839]
[1739649169496,0.63377702,97609.0,97608.0,1.87498839]
[1739649169711,0.62677702,97609.0,97608.0,1.87498839]
[1739649169903,0.63377702,97609.0,97608.0,1.87498839]
[1739649170787,0.65295465,97609.0,97608.0,1.87498839]
[1739649184594,0.64595465,97609.0,97608.0,1.87498839]
[1739649184799,0.63895465,97609.0,97608.0,1.87498839]
[1739649185021,0.64595465,97609.0,97608.0,1.87498839]
[1739649185583,0.63895465,97609.0,97608.0,1.87498839]
[1739649185967,0.64595465,97609.0,97608.0,1.87498839]
[1739649186770,0.65295465,97609.0,97608.0,1.87498839]
[1739649186979,0.64595465,97609.0,97608.0,1.87498839]
[1739649187175,0.65295465,97609.0,97608.0,1.87498839]
[1739649193222,0.63377702,97609.0,97608.0,1.87498839]
[1739649195359,0.65295535,97609.0,97608.0,1.87498839]
[1739649204936,0.65295535,97609.0,97608.0,1.87473977]
[1739649240947,0.65295535,97609.0,97608.0,1.82945948]
[1739649241644,0.64595535,97609.0,97608.0,1.82945948]
[1739649241819,0.65295535,97609.0,97608.0,1.82945948]
[1739649242027,0.64595535,97609.0,97608.0,1.82945948]
[1739649242252,0.65295535,97609.0,97608.0,1.82945948]
[1739649242551,0.66254186,97609.0,97608.0,1.79742843]
[1739649242710,0.65554186,97609.0,97608.0,1.79742843]
[1739649243050,0.66254186,97609.0,97608.0,1.79742843]
[1739649244179,0.65295535,97609.0,97608.0,1.79742843]
[1739649248492,0.65295535,97609.0,97608.0,1.77693843]